bitfinex-derivatives/quotes_BTCF0:USTF0_20251129
["timestamp","ask_amount","ask_price","bid_price","bid_amount"]
[1764425783109,0.4210144,90776.0,90775.0,0.01140381]
[1764425783412,0.4210144,90776.0,90775.0,0.03356381]
[1764425783606,0.4210144,90776.0,90775.0,0.05577381]
[1764425783805,0.4210144,90776.0,90775.0,0.01140381]
[1764425785014,0.4210144,90776.0,90775.0,0.00016528]
[1764425785404,0.4210144,90776.0,90775.0,0.00216528]
[1764425790917,0.4210144,90776.0,90775.0,0.02439528]
[1764425792607,0.4210144,90776.0,90775.0,0.04649528]
[1764425793212,0.4456338,90776.0,90775.0,0.04649528]
[1764425825338,0.5656338,90776.0,90775.0,0.04649528]
[1764425826639,0.5656338,90776.0,90775.0,0.00216528]
[1764425827232,0.5656338,90776.0,90775.0,0.04574528]
[1764425841055,0.3056338,90776.0,90775.0,0.04574528]
[1764425841246,0.6056338,90776.0,90775.0,0.04574528]
[1764425848463,0.6056338,90776.0,90775.0,0.00216528]
[1764425852153,0.0110151,90770.0,90753.0,0.01338]
[1764425852353,0.4556345,90770.0,90753.0,0.01338]
[1764425852558,0.0110159,90764.0,90753.0,0.01338]
[1764425852758,0.5510159,90764.0,90755.0,0.01096936]
[1764425852960,0.5756353,90764.0,90755.0,0.01096936]
[1764425854166,0.5756353,90764.0,90754.0,0.00016528]
[1764425854865,0.5756353,90764.0,90754.0,0.01141961]
[1764425855167,0.5756353,90764.0,90763.0,0.3648]
[1764425868779,0.5756353,90764.0,90763.0,0.38661]
[1764425871882,0.5756353,90764.0,90763.0,0.40977]
[1764425874878,0.5756353,90764.0,90763.0,0.3648]
[1764425875480,0.0110164,90760.0,90759.0,0.03519]
[1764425875686,0.0110167,90757.0,90755.0,0.00543]
[1764425875882,0.1980194,90756.0,90755.0,0.00543]
[1764425876088,0.011017,90755.0,90754.0,0.02197528]
[1764425876282,0.4756364,90755.0,90754.0,0.04513528]
[1764425877284,0.4756364,90755.0,90754.0,0.04913528]
[1764425879281,0.4928164,90755.0,90754.0,0.004]
[1764425881787,0.4928164,90755.0,90754.0,0.02639]
[1764425883387,0.4928164,90755.0,90754.0,0.04793]
[1764425903003,0.49286669,90755.0,90754.0,0.04793]
[1764425913216,0.61286669,90755.0,90754.0,0.04793]
[1764425923226,0.61286669,90755.0,90754.0,0.004]
[1764425930330,0.01726,90753.0,90752.0,0.00543]
[1764425930523,0.41192969,90753.0,90752.0,0.00543]
[1764425930925,0.53192969,90753.0,90752.0,0.00543]
[1764425931438,0.53192969,90753.0,90752.0,0.04916]
[1764425931739,0.53192969,90753.0,90752.0,0.05116]
[1764425945745,0.52329969,90753.0,90752.0,0.05116]
[1764425945943,0.51466969,90753.0,90752.0,0.05116]
[1764425947249,0.53184969,90753.0,90752.0,0.05116]
[1764425951660,0.53184969,90753.0,90752.0,0.03005]
[1764425951854,0.53184969,90753.0,90752.0,0.05132]
[1764425978686,0.53184969,90753.0,90752.0,0.06428]
[1764425979084,0.53184969,90753.0,90752.0,0.00743]
[1764425984692,0.90184969,90753.0,90752.0,0.00743]
[1764425992295,0.01718,90743.0,90742.0,0.05656]
[1764425992602,0.01718,90741.0,90740.0,0.02175]
[1764425992802,0.77184969,90741.0,90740.0,0.02175]
[1764425993002,0.89184969,90741.0,90740.0,0.02175]
[1764425994407,0.89184969,90741.0,90740.0,0.02575]
[1764425995106,0.89184969,90741.0,90740.0,0.02175]
[1764425995308,0.89184969,90741.0,90740.0,0.02375]
[1764425996107,0.89184969,90741.0,90740.0,0.0456]
[1764426001006,0.89185604,90741.0,90740.0,0.0456]
[1764426003312,0.0281996,90733.0,90732.0,0.02325]
[1764426003516,0.90287564,90733.0,90732.0,0.02325]
[1764426004305,0.0110204,90727.0,90723.0,0.01391]
[1764426004512,0.8782004,90727.0,90726.0,0.04572556]
[1764426004711,0.8782004,90727.0,90726.0,0.05963556]
[1764426005313,0.90339349,90727.0,90726.0,0.05963556]
[1764426005813,0.90339349,90727.0,90726.0,0.07081999]
[1764426006220,0.8782004,90727.0,90726.0,0.07081999]
[1764426006623,0.8610204,90727.0,90726.0,0.07081999]
[1764426006821,0.8433837,90727.0,90726.0,0.00027556]
[1764426007117,0.0282017,90716.0,90715.0,0.0455332]
[1764426007308,0.7882017,90716.0,90715.0,0.0455332]
[1764426008616,0.38,90716.0,90715.0,0.056555]
[1764426009322,0.38,90716.0,90715.0,0.058555]
[1764426017331,0.1562148,90730.0,90729.0,0.0564701]
[1764426017625,0.39859,90730.0,90729.0,0.0564701]
[1764426018131,0.40718,90730.0,90729.0,0.0564701]
[1764426019632,0.40818,90730.0,90729.0,0.0564701]
[1764426021021,0.39959,90730.0,90729.0,0.0564701]
[1764426022126,0.391,90730.0,90729.0,0.0564701]
[1764426024031,0.391,90730.0,90729.0,0.06768555]
[1764426028529,0.40818,90730.0,90729.0,0.06768555]
[1764426034828,0.391,90730.0,90729.0,0.06768555]
[1764426035836,0.40818,90730.0,90729.0,0.06768555]
[1764426036040,0.40818,90730.0,90729.0,0.06652555]
[1764426036239,0.40818,90730.0,90729.0,0.08021555]
[1764426037441,0.40818,90730.0,90729.0,0.02223555]
[1764426037751,0.76818,90730.0,90729.0,0.01121545]
[1764426038044,0.01718,90722.0,90721.0,0.011021]
[1764426038245,0.41718,90722.0,90721.0,0.033931]
[1764426038541,0.41718,90722.0,90721.0,0.04480731]
[1764426039334,0.41718,90722.0,90721.0,0.04580731]
[1764426040343,0.428201,90722.0,90721.0,0.04580731]
[1764426041634,0.41718,90722.0,90721.0,0.04580731]
[1764426043236,0.41718,90722.0,90721.0,0.06718731]
[1764426044450,0.41718,90722.0,90721.0,0.02289731]
[1764426044641,0.84718,90722.0,90721.0,0.04580731]
[1764426044840,0.52718,90722.0,90721.0,0.06718731]
[1764426051168,0.41718,90722.0,90721.0,0.06718731]
[1764426051546,0.41718,90722.0,90721.0,0.02289731]
[1764426051547,0.82718,90722.0,90721.0,0.02289731]
[1764426051748,0.82718,90722.0,90721.0,0.06718731]
[1764426052052,0.51718,90722.0,90721.0,0.06718731]
[1764426054148,0.75718,90722.0,90721.0,0.06718731]
[1764426054348,0.46718,90722.0,90721.0,0.06718731]
[1764426054855,0.41718,90722.0,90721.0,0.06718731]
[1764426056754,0.40859,90722.0,90721.0,0.06718731]
[1764426057460,0.16484781,90731.0,90730.0,0.05554]
[1764426057660,0.43239615,90731.0,90730.0,0.05554]
[1764426058656,0.40718,90731.0,90730.0,0.05554]
[1764426058862,0.40918,90731.0,90730.0,0.05554]
[1764426075370,0.40918,90731.0,90730.0,0.01102]
[1764426075570,0.40918,90731.0,90730.0,0.05554]
[1764426089793,0.78918,90731.0,90730.0,0.05554]
[1764426090184,0.45918,90731.0,90730.0,0.05554]
[1764426090390,0.40918,90731.0,90730.0,0.05554]
[1764426100196,0.00189976,90731.0,90730.0,0.05554]
[1764426100796,0.00016528,90742.0,90741.0,0.0110187]
[1764426100996,0.0110174,90752.0,90749.0,0.0110177]
[1764426101196,0.02497306,90751.0,90749.0,0.0110177]
[1764426101396,0.02497306,90750.0,90749.0,0.0110177]
[1764426101597,0.67497306,90750.0,90749.0,0.0110177]
[1764426102491,0.67497306,90750.0,90746.0,0.011018]
[1764426102492,0.0110177,90749.0,90746.0,0.011018]
[1764426102696,0.02497306,90748.0,90746.0,0.011018]
[1764426102899,0.02497306,90747.0,90746.0,0.011018]
[1764426103104,0.43497306,90747.0,90746.0,0.011018]
[1764426105600,0.43997306,90747.0,90746.0,0.011018]
[1764426107297,0.415,90747.0,90746.0,0.011018]
[1764426109604,0.415,90747.0,90746.0,0.02183397]
[1764426112799,0.415,90747.0,90746.0,0.06657397]
[1764426114208,0.43993861,90747.0,90746.0,0.06657397]
[1764426118705,0.43993861,90747.0,90746.0,0.08051397]
[1764426122816,0.87993861,90747.0,90746.0,0.06949597]
[1764426123814,0.87993861,90747.0,90746.0,0.04669597]
[1764426124615,0.87993861,90747.0,90746.0,0.02475597]
[1764426125616,0.87993861,90747.0,90746.0,0.04796597]
[1764426128524,0.87993861,90747.0,90746.0,0.06953597]
[1764426130221,0.58993861,90747.0,90746.0,0.06953597]
[1764426142933,0.43993861,90747.0,90746.0,0.06953597]
[1764426143729,0.85993861,90747.0,90746.0,0.06953597]
[1764426144934,0.60993861,90747.0,90746.0,0.06953597]
[1764426145124,0.43993861,90747.0,90746.0,0.06953597]
[1764426145329,0.82993861,90747.0,90746.0,0.06953597]
[1764426161653,0.94993861,90747.0,90746.0,0.06953597]
[1764426164256,0.94993861,90747.0,90746.0,0.01081597]
[1764426164651,0.94993861,90747.0,90742.0,0.0110185]
[1764426164851,0.02493861,90746.0,90742.0,0.0110185]
[1764426165051,0.80493861,90746.0,90742.0,0.0110185]
[1764426165353,0.02493861,90745.0,90742.0,0.0110185]
[1764426165553,0.79493861,90745.0,90742.0,0.0110185]
[1764426165754,0.02493861,90744.0,90742.0,0.0110185]
[1764426165949,0.0110184,90743.0,90742.0,0.0110185]
[1764426166157,0.73595701,90743.0,90742.0,0.0110185]
[1764426167954,0.73595701,90743.0,90742.0,0.01079291]
[1764426168146,0.73595701,90743.0,90740.0,0.01118398]
[1764426168345,0.0110187,90741.0,90740.0,0.01118398]
[1764426168553,0.3910187,90741.0,90740.0,0.01118398]
[1764426168758,0.5110187,90741.0,90740.0,0.01118398]
[1764426170765,0.5140187,90741.0,90740.0,0.01118398]
[1764426172466,0.5140187,90741.0,90740.0,0.02202659]
[1764426176766,0.5140187,90741.0,90740.0,0.01100789]
[1764426176968,0.9440187,90741.0,90740.0,0.01100789]
[1764426180862,0.8240187,90741.0,90740.0,0.01100789]
[1764426183572,0.84909193,90741.0,90740.0,0.01100789]
[1764426184271,0.8240187,90741.0,90740.0,0.01100789]
[1764426184975,0.84908986,90741.0,90740.0,0.01100789]
[1764426185275,0.0110207,90724.0,90722.0,0.07935475]
[1764426185474,0.3910207,90724.0,90721.0,0.0110211]
[1764426185671,0.3910207,90724.0,90723.0,0.0110209]
[1764426187478,0.3910207,90724.0,90723.0,0.0120209]
[1764426187679,0.38,90724.0,90723.0,0.0120209]
[1764426188679,0.38,90724.0,90723.0,0.001]
[1764426190076,0.38,90724.0,90723.0,0.01194532]
[1764426191478,0.82,90724.0,90723.0,0.01194532]
[1764426208292,0.82,90724.0,90723.0,0.001]
[1764426208480,0.84500775,90724.0,90723.0,0.001]
[1764426225192,0.84500775,90724.0,90718.0,0.01267]
[1764426225397,0.0110213,90719.0,90716.0,0.01267]
[1764426225596,0.0110216,90717.0,90716.0,0.02363762]
[1764426225803,0.82602935,90717.0,90716.0,0.02363762]
[1764426227699,0.82602935,90717.0,90716.0,0.01396762]
[1764426227901,0.82602935,90717.0,90716.0,0.003]
[1764426242529,0.82602935,90717.0,90716.0,0.01577]
[1764426249824,0.82602935,90717.0,90716.0,0.0591]
[1764426252035,0.8010216,90717.0,90716.0,0.0591]
[1764426252333,0.82597729,90717.0,90716.0,0.0591]
[1764426252733,0.48597729,90717.0,90716.0,0.0591]
[1764426252934,0.71597729,90717.0,90716.0,0.0591]
[1764426254033,0.71597729,90717.0,90716.0,0.0701217]
[1764426254636,0.45597729,90717.0,90716.0,0.0701217]
[1764426254937,0.45597729,90717.0,90716.0,0.0591]
[1764426255142,0.77597729,90717.0,90716.0,0.0591]
[1764426260039,0.41597729,90717.0,90716.0,0.0591]
[1764426260245,0.53597729,90717.0,90716.0,0.0591]
[1764426262446,0.79597729,90717.0,90716.0,0.0591]
[1764426300974,0.40495569,90717.0,90716.0,0.0591]
[1764426301278,0.38,90717.0,90716.0,0.0591]
[1764426305176,0.14774872,90730.0,90729.0,0.05944]
[1764426305477,0.44425026,90730.0,90729.0,0.0704601]
[1764426306579,0.44525026,90730.0,90729.0,0.0704601]
[1764426310382,0.69525026,90730.0,90729.0,0.05944]
[1764426311182,0.671,90730.0,90729.0,0.05944]
[1764426314083,0.671,90730.0,90729.0,0.07070639]
[1764426314287,0.69523578,90730.0,90729.0,0.07070639]
[1764426315288,0.69523578,90730.0,90729.0,0.01126639]
[1764426315689,0.0110201,90729.0,90726.0,0.03518]
[1764426315886,0.7910201,90729.0,90726.0,0.05789]
[1764426316082,0.7910201,90729.0,90726.0,0.0689104]
[1764426316684,0.0110207,90724.0,90722.0,0.0110209]
[1764426316886,0.82,90724.0,90722.0,0.0110209]
[1764426317289,0.8310208,90724.0,90722.0,0.0324109]
[1764426317790,0.8310208,90724.0,90722.0,0.0551209]
[1764426318191,0.8310208,90724.0,90723.0,0.0127]
[1764426318389,0.8310208,90724.0,90723.0,0.03389]
[1764426319290,0.8310208,90724.0,90723.0,0.03489]
[1764426320585,0.8310208,90724.0,90723.0,0.001]
[1764426321787,0.0110217,90716.0,90715.0,8.32e-05]
[1764426322093,0.8010217,90716.0,90715.0,8.32e-05]
[1764426322887,0.8010217,90716.0,90715.0,0.0030832]
[1764426324896,0.8010217,90716.0,90715.0,0.0242732]
[1764426328298,0.8010217,90716.0,90715.0,0.0467932]
[1764426346216,0.8252196,90716.0,90715.0,0.0467932]
[1764426348916,0.8252288,90716.0,90715.0,0.0467932]
[1764426354530,0.72039562,90716.0,90715.0,0.0467932]
[1764426354729,0.73141732,90716.0,90715.0,0.0467932]
[1764426364133,0.70721022,90716.0,90715.0,0.0467932]
[1764426364336,0.73144736,90716.0,90715.0,0.0467932]
[1764426371636,0.47525884,90716.0,90715.0,0.0467932]
[1764426372733,0.41525884,90716.0,90715.0,0.0467932]
[1764426372939,0.70525884,90716.0,90715.0,0.0467932]
[1764426373641,0.41525884,90716.0,90715.0,0.0467932]
[1764426381547,0.86525884,90716.0,90715.0,0.0467932]
[1764426383843,0.85423714,90716.0,90715.0,0.0467932]
[1764426389349,0.52423714,90716.0,90715.0,0.0467932]
[1764426389550,0.40423714,90716.0,90715.0,0.0467932]
[1764426391163,0.38,90716.0,90715.0,0.0467932]
[1764426391456,0.01118498,90733.0,90732.0,0.05868]
[1764426391657,0.79118488,90733.0,90732.0,0.05868]
[1764426391956,0.81539914,90733.0,90732.0,0.05868]
[1764426392852,0.81739914,90733.0,90732.0,0.05868]
[1764426400365,0.81739914,90733.0,90732.0,0.06965609]
[1764426407672,0.81739914,90733.0,90732.0,0.01097609]
[1764426408069,0.81739914,90733.0,90730.0,0.0110199]
[1764426408270,0.79318488,90733.0,90730.0,0.0110199]
[1764426409670,0.79118488,90733.0,90730.0,0.0110199]
[1764426409874,0.79318488,90733.0,90730.0,0.02199488]
[1764426411373,0.0110199,90731.0,90730.0,0.02199488]
[1764426411572,0.7810199,90731.0,90730.0,0.02199488]
[1764426413362,0.7830199,90731.0,90730.0,0.02199488]
[1764426415270,0.80716262,90731.0,90730.0,0.02199488]
[1764426416575,0.0110217,90717.0,90713.0,0.011022]
[1764426416783,0.7610217,90717.0,90713.0,0.011022]
[1764426417375,0.7610217,90717.0,90706.0,0.0110229]
[1764426417573,0.0110224,90710.0,90705.0,0.28769362]
[1764426417780,0.8810224,90710.0,90705.0,0.28769362]
[1764426418174,0.8810224,90710.0,90707.0,0.0110228]
[1764426418781,0.88111432,90710.0,90707.0,0.0110228]
[1764426419583,0.88111432,90710.0,90709.0,0.02131]
[1764426419774,0.88111432,90710.0,90709.0,0.03256179]
[1764426425380,0.52111432,90710.0,90709.0,0.03256179]
[1764426425783,0.52111432,90710.0,90709.0,0.07794179]
[1764426427778,0.51009192,90710.0,90709.0,0.07794179]
[1764426427980,0.43009192,90710.0,90709.0,0.07794179]
[1764426447205,9.192e-05,90710.0,90709.0,0.15729654]
[1764426447704,0.0110206,90726.0,90725.0,0.04539]
[1764426447898,0.5310206,90726.0,90725.0,0.04539]
[1764426448098,0.55527508,90726.0,90725.0,0.0564106]
[1764426451804,0.55527508,90726.0,90725.0,0.04539]
[1764426452609,0.77527508,90726.0,90725.0,0.04539]
[1764426453710,0.77527508,90726.0,90725.0,0.05657905]
[1764426463519,0.77527508,90726.0,90725.0,0.01118905]
[1764426464024,0.77527508,90726.0,90724.0,0.01363]
[1764426464321,0.02425448,90725.0,90724.0,0.03562]
[1764426464522,0.84425448,90725.0,90724.0,0.03562]
[1764426468225,0.84425448,90725.0,90724.0,0.04683888]
[1764426468422,0.84425448,90725.0,90724.0,0.01121888]
[1764426468926,0.0110213,90719.0,90718.0,0.0586]
[1764426469122,0.3810213,90719.0,90718.0,0.0586]
[1764426469525,0.37,90719.0,90718.0,0.0586]
[1764426470326,0.37,90719.0,90718.0,0.0606]
[1764426472625,0.37,90719.0,90718.0,0.07150734]
[1764426476227,0.39425635,90719.0,90718.0,0.07150734]
[1764426479132,0.37,90719.0,90718.0,0.07150734]
[1764426496550,0.14770509,90728.0,90727.0,0.0563804]
[1764426496551,0.15872549,90728.0,90727.0,0.0563804]
[1764426496851,0.61518993,90728.0,90727.0,0.0563804]
[1764426497954,0.61618993,90728.0,90727.0,0.0563804]
[1764426501462,0.61618993,90728.0,90727.0,0.04536]
[1764426502457,0.61618993,90728.0,90727.0,0.0227]
[1764426502657,0.61618993,90728.0,90726.0,0.01288]
[1764426502960,0.02416953,90727.0,90726.0,0.01288]
[1764426503157,0.81416953,90727.0,90726.0,0.01288]
[1764426503560,0.81416953,90727.0,90726.0,0.0239005]
[1764426504453,0.81516953,90727.0,90726.0,0.0239005]
[1764426505860,0.81516953,90727.0,90726.0,0.0459705]
[1764426512153,0.81516953,90727.0,90726.0,0.03495]
[1764426513764,0.81516953,90727.0,90726.0,0.05696]
[1764426515862,0.81516953,90727.0,90726.0,0.03495]
[1764426517469,0.55516953,90727.0,90726.0,0.05696]
[1764426529186,0.82516953,90727.0,90726.0,0.05696]
[1764426530585,0.82517666,90727.0,90726.0,0.05696]
[1764426544403,0.82517666,90727.0,90726.0,0.01288]
[1764426545195,0.82517666,90727.0,90726.0,0.03573]
[1764426545401,0.82517666,90727.0,90726.0,0.05691]
[1764426546400,0.82517666,90727.0,90726.0,0.03573]
[1764426547805,0.82517666,90727.0,90726.0,0.05691]
[1764426556108,0.54517666,90727.0,90726.0,0.05691]
[1764426556703,0.43517666,90727.0,90726.0,0.05691]
[1764426556903,0.411,90727.0,90726.0,0.05691]
[1764426592628,0.7820205,90727.0,90724.0,0.01288]
[1764426592827,0.0110208,90724.0,90722.0,0.01288]
[1764426593032,0.8610208,90724.0,90722.0,0.01288]
[1764426593434,0.8610208,90724.0,90722.0,0.03605]
[1764426594638,0.8610208,90724.0,90722.0,0.05858]
[1764426594932,0.0110211,90721.0,90720.0,0.01288]
[1764426595236,0.8310211,90721.0,90718.0,0.02436734]
[1764426596037,0.8310211,90721.0,90718.0,0.04753734]
[1764426596738,0.8310211,90721.0,90718.0,0.04953734]
[1764426598742,0.8310211,90721.0,90718.0,0.07206734]
[1764426599527,0.8310211,90721.0,90720.0,0.01346]
[1764426599725,0.8310211,90721.0,90720.0,0.03663]
[1764426600040,0.8310211,90721.0,90720.0,0.05916]
[1764426601432,0.8310211,90721.0,90720.0,0.06016]
[1764426602442,0.82,90721.0,90720.0,0.0711812]
[1764426602844,0.82,90721.0,90720.0,0.06016]
[1764426603544,0.08805537,90752.0,90728.0,0.01346]
[1764426603741,0.0110165,90759.0,90731.0,0.0457]
[1764426603742,0.02397818,90732.0,90731.0,0.0457]
[1764426604039,0.00016528,90733.0,90732.0,0.0567198]
[1764426604241,0.41016528,90733.0,90732.0,0.0567198]
[1764426605639,0.41216528,90733.0,90732.0,0.0567198]
[1764426619853,0.41216528,90733.0,90732.0,0.0700198]
[1764426621658,0.00216528,90733.0,90732.0,0.0700198]
[1764426622458,0.011018,90747.0,90746.0,0.05741]
[1764426622756,0.43499482,90747.0,90746.0,0.05741]
[1764426623551,0.44099482,90747.0,90746.0,0.05741]
[1764426624259,0.417018,90747.0,90746.0,0.05741]
[1764426625260,0.406,90747.0,90746.0,0.05741]
[1764426626958,0.404,90747.0,90746.0,0.05741]
[1764426627260,0.404,90747.0,90746.0,0.06869505]
[1764426627451,0.403,90747.0,90746.0,0.06869505]
[1764426631458,0.4,90747.0,90746.0,0.06869505]
[1764426631657,0.402,90747.0,90746.0,0.06869505]
[1764426634958,0.112,90747.0,90746.0,0.06869505]
[1764426635361,0.372,90747.0,90746.0,0.06869505]
[1764426635860,0.012,90747.0,90746.0,0.06869505]
[1764426637360,0.222,90747.0,90746.0,0.06869505]
[1764426641754,0.002,90747.0,90746.0,0.06869505]
[1764426643657,0.00016528,90756.0,90755.0,0.04359]
[1764426643858,0.35016528,90756.0,90755.0,0.04359]
[1764426644762,0.35016528,90756.0,90755.0,0.054607]
[1764426644964,0.35316528,90756.0,90755.0,0.054607]
[1764426649674,0.35316528,90756.0,90755.0,0.04359]
[1764426650463,0.35316528,90756.0,90755.0,0.054607]
[1764426651358,0.35316528,90756.0,90755.0,0.011017]
[1764426651564,0.011017,90755.0,90752.0,0.0110173]
[1764426651764,0.421017,90755.0,90752.0,0.0110173]
[1764426652163,0.421017,90755.0,90752.0,0.0328673]
[1764426652866,0.0110173,90753.0,90749.0,0.0110177]
[1764426653170,0.4410173,90753.0,90749.0,0.0110177]
[1764426653370,0.4410173,90753.0,90746.0,0.02458505]
[1764426653371,0.43,90753.0,90750.0,0.0110175]
[1764426653971,0.432,90753.0,90750.0,0.0110175]
[1764426654566,0.43,90753.0,90750.0,0.0110175]
[1764426654765,0.433,90753.0,90750.0,0.0110175]
[1764426656173,0.433,90753.0,90750.0,0.0328675]
[1764426658168,0.0110178,90749.0,90746.0,0.04643505]
[1764426658365,0.42,90749.0,90747.0,0.0110179]
[1764426658575,0.42,90749.0,90746.0,0.01128505]
[1764426658871,0.4310178,90749.0,90746.0,0.02185]
[1764426659873,0.4330178,90749.0,90746.0,0.02185]
[1764426662975,0.0110182,90745.0,90744.0,0.02460363]
[1764426663179,0.3710182,90745.0,90744.0,0.02460363]
[1764426663380,0.3710182,90745.0,90744.0,0.04645363]
[1764426663680,0.3710182,90745.0,90744.0,0.06854363]
[1764426663874,0.36,90745.0,90744.0,0.06854363]
[1764426664070,0.36,90745.0,90744.0,0.01130363]
[1764426664274,0.36,90745.0,90723.0,0.13805448]
[1764426664275,0.0110189,90739.0,90738.0,0.03542]
[1764426664482,0.4210189,90739.0,90738.0,0.03542]
[1764426665177,0.8010189,90739.0,90733.0,0.0110196]
[1764426665778,0.8030189,90739.0,90732.0,0.01357]
[1764426666384,0.8030189,90739.0,90735.0,0.0110193]
[1764426667382,0.8030189,90739.0,90732.0,0.0245897]
[1764426668180,0.8030189,90739.0,90737.0,0.01126019]
[1764426669680,0.8030189,90739.0,90737.0,0.03311019]
[1764426671892,0.8030189,90739.0,90737.0,0.05520019]
[1764426673790,0.8030189,90739.0,90737.0,0.01126019]
[1764426674790,0.8030189,90739.0,90737.0,0.03239019]
[1764426675790,0.792,90739.0,90738.0,0.011019]
[1764426676392,0.792,90739.0,90738.0,0.032149]
[1764426676579,0.412,90739.0,90738.0,0.02113]
[1764426676782,0.572,90739.0,90738.0,0.02113]
[1764426677295,0.572,90739.0,90738.0,0.03413]
[1764426677692,0.57,90739.0,90738.0,0.03413]
[1764426677889,0.572,90739.0,90738.0,0.03413]
[1764426680994,0.572,90739.0,90738.0,0.05542]
[1764426683798,0.572,90739.0,90738.0,0.066439]
[1764426685704,0.572,90739.0,90738.0,0.05542]
[1764426688690,0.752,90739.0,90738.0,0.05542]
[1764426696604,0.011019,90738.0,90737.0,0.01126019]
[1764426696800,0.83502657,90738.0,90737.0,0.01126019]
[1764426697710,0.83502657,90738.0,90737.0,0.00016528]
[1764426698010,0.83702657,90738.0,90737.0,0.00016528]
[1764426712932,0.52702657,90738.0,90737.0,0.04263528]
[1764426715419,0.52702657,90738.0,90737.0,0.05365448]
[1764426716127,0.75702657,90738.0,90737.0,0.04263528]
[1764426721331,0.75702657,90738.0,90737.0,0.05365448]
[1764426724036,0.75702657,90738.0,90737.0,0.04263528]
[1764426724838,0.75702657,90738.0,90737.0,0.05365448]
[1764426725439,0.75702657,90738.0,90737.0,0.04263528]
[1764426736645,0.46702657,90738.0,90737.0,0.04263528]
[1764426739345,0.38600757,90738.0,90737.0,0.04263528]
[1764426747950,0.762,90738.0,90737.0,0.04263528]
[1764426748250,0.78604617,90738.0,90737.0,0.04263528]
[1764426753146,0.78604617,90738.0,90737.0,0.00016528]
[1764426753950,0.78604617,90738.0,90737.0,0.02180528]
[1764426754150,0.78604617,90738.0,90737.0,0.04288528]
[1764426756845,0.38604617,90738.0,90737.0,0.04288528]
[1764426757046,0.83604617,90738.0,90737.0,0.04288528]
[1764426757457,0.38604617,90738.0,90737.0,0.04288528]
[1764426757656,0.79604617,90738.0,90737.0,0.04288528]
[1764426761656,0.57604617,90738.0,90737.0,0.04288528]
[1764426765868,0.38604617,90738.0,90737.0,0.04288528]
[1764426774067,0.012,90738.0,90737.0,0.04288528]
[1764426774266,0.002,90738.0,90737.0,0.04288528]
[1764426774455,0.14765709,90750.0,90749.0,0.04638]
[1764426774660,0.42406703,90750.0,90749.0,0.04638]
[1764426774860,0.42406703,90750.0,90749.0,0.0573977]
[1764426775569,0.42906703,90750.0,90749.0,0.0573977]
[1764426776269,0.405,90750.0,90749.0,0.0573977]
[1764426776772,0.4160176,90750.0,90749.0,0.04638]
[1764426777767,0.405,90750.0,90749.0,0.04638]
[1764426779656,0.4,90750.0,90749.0,0.04638]
[1764426779856,0.402,90750.0,90749.0,0.04638]
[1764426785871,0.4,90750.0,90749.0,0.04638]
[1764426786564,0.4,90750.0,90749.0,0.05762765]
[1764426786970,0.00016528,90756.0,90755.0,0.057397]
[1764426787172,0.40016528,90756.0,90755.0,0.057397]
[1764426788377,0.40216528,90756.0,90755.0,0.057397]
[1764426794289,0.40116528,90756.0,90755.0,0.057397]
[1764426800904,0.40016528,90756.0,90755.0,0.057397]
[1764426811708,0.40116528,90756.0,90755.0,0.057397]
[1764426844636,0.00116528,90756.0,90755.0,0.057397]
[1764426846823,0.00016528,90756.0,90755.0,0.058397]
[1764426848229,0.00016528,90756.0,90755.0,0.057397]
[1764426848436,0.00016528,90756.0,90755.0,0.058397]
[1764426848838,0.00016528,90756.0,90755.0,0.057397]
[1764426851135,0.00016528,90756.0,90755.0,0.13665423]
[1764426854350,0.00016528,90756.0,90755.0,0.057397]
[1764426858744,0.00016528,90756.0,90755.0,0.058397]
[1764426874656,0.38016528,90756.0,90755.0,0.04738]
[1764426874855,0.38016528,90756.0,90750.0,0.01385]
[1764426874856,0.0110175,90751.0,90749.0,0.09059905]
[1764426875053,0.0110182,90745.0,90744.0,0.01385]
[1764426875255,0.8810182,90745.0,90742.0,0.01086518]
[1764426875454,0.8810182,90745.0,90738.0,0.0568]
[1764426875755,0.0110185,90743.0,90738.0,0.0568]
[1764426875962,0.75,90743.0,90738.0,0.0568]
[1764426876261,0.75,90743.0,90739.0,0.0110189]
[1764426876561,0.75,90743.0,90739.0,0.0539689]
[1764426877862,0.752,90743.0,90739.0,0.0539689]
[1764426878262,0.0110185,90742.0,90739.0,0.04295]
[1764426878460,0.8110185,90742.0,90739.0,0.04295]
[1764426880963,0.8130185,90742.0,90739.0,0.04295]
[1764426881655,0.0110189,90739.0,90738.0,0.01120867]
[1764426881856,0.0110189,90739.0,90737.0,0.00016528]
[1764426881857,0.8310189,90739.0,90737.0,0.00016528]
[1764426883865,0.8320189,90739.0,90737.0,0.00016528]
[1764426885071,0.0110209,90723.0,90720.0,0.05857]
[1764426885267,0.8310209,90723.0,90720.0,0.05857]
[1764426887075,0.8310209,90723.0,90720.0,0.06157]
[1764426887573,0.8310209,90723.0,90720.0,0.07241511]
[1764426889471,0.82,90723.0,90720.0,0.07241511]
[1764426889862,0.8310209,90723.0,90720.0,0.07241511]
[1764426890669,0.8310209,90723.0,90720.0,0.003]
[1764426891360,0.0110222,90712.0,90708.0,0.01271]
[1764426891667,0.8210222,90712.0,90699.0,0.01271]
[1764426891966,0.8210222,90712.0,90699.0,0.0237337]
[1764426892164,0.8210222,90712.0,90702.0,0.0237334]
[1764426892769,0.8210222,90712.0,90709.0,0.03984]
[1764426893668,0.8210222,90712.0,90709.0,0.04484]
[1764426894861,0.8210222,90712.0,90710.0,0.0110224]
[1764426895066,0.8210222,90712.0,90710.0,0.02253]
[1764426896667,0.8210222,90712.0,90710.0,0.02653]
[1764426900972,0.8210222,90712.0,90710.0,0.04472]
[1764426901170,0.8210222,90712.0,90711.0,0.05743]
[1764426902476,0.8210222,90712.0,90711.0,0.05843]
[1764426903579,0.42,90712.0,90711.0,0.05843]
[1764426933194,0.87,90712.0,90711.0,0.05843]
[1764426933397,0.87,90712.0,90711.0,0.001]
[1764426935893,0.87,90712.0,90711.0,0.02325]
[1764426937892,0.87,90712.0,90711.0,0.001]
[1764426942694,0.87,90712.0,90711.0,0.02325]
[1764426942894,0.42,90712.0,90711.0,0.0696223]
[1764426943102,0.57,90712.0,90711.0,0.0696223]
[1764426943599,0.8,90712.0,90711.0,0.0586]
[1764426949109,0.8,90712.0,90711.0,0.0696223]
[1764426949303,0.8,90712.0,90711.0,0.0586]